bitfinex/quotes_SOLUSD_20251202
["timestamp","ask_amount","ask_price","bid_price","bid_amount"]
[1764713557653,0.71,139.43,139.41,25.10454757]
[1764713559278,3.11918856,139.42,139.41,25.10454757]
[1764713559676,3.82918856,139.42,139.37,25.11300853]
[1764713559858,3.82918856,139.41,139.37,61.64873501]
[1764713560261,3.11918856,139.39,139.37,60.98873501]
[1764713560458,3.11918856,139.43,139.37,64.10792357]
[1764713560664,3.82918856,139.43,139.38,3.77918856]
[1764713560880,0.71,139.42,139.38,3.77918856]
[1764713561056,0.71,139.42,139.39,0.66]
[1764713561753,0.71,139.42,139.4,7.17360114]
[1764713565159,7.92,139.45,139.41,0.67]
[1764713565358,0.71,139.44,139.4,3.78918856]
[1764713565553,0.71,139.44,139.4,0.67]
[1764713565762,7.92,139.48,139.43,3.11918856]
[1764713565960,0.71,139.47,139.44,3.11918856]
[1764713566260,0.71,139.47,139.44,3.78918856]
[1764713567008,0.71,139.51,139.46,3.11918856]
[1764713567165,0.71,139.51,139.45,0.67]
[1764713567166,0.71,139.51,139.48,25.09320332]
[1764713568179,3.11918856,139.5,139.48,7.16948666]
[1764713568398,0.71,139.51,139.48,25.09320332]
[1764713569388,0.71,139.51,139.48,25.76320332]
[1764713569887,12.78158418,139.53,139.48,25.76320332]
[1764713569888,0.71,139.52,139.5,4.86158418]
[1764713570111,0.1,139.55,139.51,5.53158418]
[1764713570266,0.81,139.55,139.52,4.86158418]
[1764713570466,0.81,139.55,139.52,0.67]
[1764713570467,0.1,139.55,139.52,0.67]
[1764713570681,0.81,139.55,139.52,0.67]
[1764713570991,0.1,139.55,139.52,5.53158418]
[1764713571166,0.1,139.55,139.53,0.67]
[1764713571369,0.1,139.55,139.54,7.16640389]
[1764713571890,4.96158418,139.55,139.54,7.16640389]
[1764713572396,0.81,139.55,139.53,7.16681588]
[1764713572604,0.71,139.54,139.53,7.16681588]
[1764713573279,0.1,139.55,139.52,17.91751054]
[1764713573489,0.1,139.55,139.53,0.67]
[1764713573794,0.1,139.55,139.54,4.86158418]
[1764713574185,1e-08,139.55,139.54,21.84044818]
[1764713574778,1e-08,139.55,139.54,30.6503931]
[1764713575404,1e-08,139.55,139.54,32.95521281]
[1764713575622,1e-08,139.55,139.54,37.81679699]
[1764713576379,1e-08,139.55,139.54,32.95521281]
[1764713576702,1e-08,139.55,139.54,37.81679699]
[1764713577687,1e-08,139.55,139.54,40.68448885]
[1764713577885,1e-08,139.55,139.54,31.87454393]
[1764713578485,1e-08,139.55,139.54,27.01295975]
[1764713578685,1e-08,139.55,139.54,24.14526789]
[1764713578978,1e-08,139.55,139.54,23.47526789]
[1764713579506,1e-08,139.55,139.54,24.14526789]
[1764713579898,1e-08,139.55,139.54,7.16640389]
[1764713580098,1e-08,139.55,139.54,12.02798807]
[1764713580278,1e-08,139.55,139.54,12.69798807]
[1764713580900,1e-08,139.55,139.54,29.00685207]
[1764713581510,1e-08,139.55,139.54,36.92685207]
[1764713581706,1e-08,139.59,139.57,16.308864]
[1764713581896,1e-08,139.59,139.58,4.86158418]
[1764713582498,1e-08,139.59,139.58,5.53158418]
[1764713583314,3.19621746,139.66,139.59,25.78880892]
[1764713583492,3.19621746,139.66,139.63,4.86158418]
[1764713583694,3.19621746,139.66,139.64,7.16127184]
[1764713585212,3.19621746,139.66,139.64,7.83127184]
[1764713585422,3.19621746,139.66,139.65,4.86158418]
[1764713585815,3.19621746,139.66,139.65,12.02234322]
[1764713585998,3.19621746,139.66,139.65,7.16075904]
[1764713586200,3.19621746,139.66,139.65,7.83075904]
[1764713586201,1e-08,139.66,139.65,7.83075904]
[1764713586421,1e-08,139.67,139.66,0.67]
[1764713586719,1e-08,139.67,139.66,5.53158418]
[1764713586891,0.1,139.69,139.66,5.53158418]
[1764713587096,0.1,139.69,139.66,0.67]
[1764713587097,1e-08,139.69,139.66,0.67]
[1764713587316,1e-08,139.69,139.67,4.86158418]
[1764713587519,1e-08,139.69,139.68,4.86158418]
[1764713587819,1e-08,139.69,139.68,12.02080525]
[1764713588199,1e-08,139.69,139.68,7.15922107]
[1764713588390,1e-08,139.69,139.68,12.69080525]
[1764713588795,1e-08,139.69,139.68,28.99966925]
[1764713589015,1e-08,139.69,139.68,27.99966925]
[1764713589337,1e-08,139.69,139.68,23.55916599]
[1764713589494,1e-08,139.69,139.68,33.28233435]
[1764713589909,1e-08,139.69,139.68,36.80961417]
[1764713590096,1e-08,139.69,139.68,49.59119835]
[1764713590508,1e-08,139.69,139.68,39.86802999]
[1764713590709,1e-08,139.69,139.68,44.72961417]
[1764713591016,1e-08,139.69,139.68,27.99966925]
[1764713591319,1e-08,139.69,139.68,22.46808507]
[1764713591496,1e-08,139.69,139.68,27.32966925]
[1764713591996,1e-08,139.69,139.68,22.46808507]
[1764713592196,1e-08,139.69,139.68,11.02080525]
[1764713592398,1e-08,139.69,139.68,24.49238943]
[1764713592709,1e-08,139.69,139.68,49.61119835]
[1764713592909,1e-08,139.69,139.68,33.30233435]
[1764713593721,1e-08,139.69,139.68,23.57916599]
[1764713593932,1e-08,139.69,139.68,33.30233435]
[1764713594097,0.7,139.76,139.71,16.308864]
[1764713594297,0.7,139.76,139.75,4.86158418]
[1764713594909,0.7,139.76,139.74,4.86158418]
[1764713595311,0.7,139.76,139.75,4.86158418]
[1764713595829,0.7,139.76,139.74,4.86158418]
[1764713596211,0.7,139.76,139.75,7.15563506]
[1764713597209,16.308864,139.81,139.75,30.59630689]
[1764713597210,16.308864,139.79,139.75,30.59630689]
[1764713597507,0.7,139.82,139.75,30.59630689]
[1764713597508,0.7,139.82,139.78,4.86158418]
[1764713597716,0.7,139.81,139.78,4.86158418]
[1764713598034,0.7,139.81,139.79,4.86158418]
[1764713598233,0.7,139.81,139.8,7.15307582]
[1764713598428,0.7,139.81,139.79,7.15345747]
[1764713598833,0.7,139.81,139.77,12.01619532]
[1764713599030,0.7,139.81,139.77,29.90272318]
[1764713599413,0.7,139.81,139.77,25.041139]
[1764713599626,0.7,139.81,139.77,29.90272318]
[1764713600224,0.7,139.81,139.77,25.041139]
[1764713600531,4.86158418,139.79,139.74,4.86158418]
[1764713600713,4.86158418,139.78,139.73,4.86158418]
[1764713600916,4.86158418,139.78,139.7,0.69]
[1764713601237,5.56158418,139.77,139.72,4.86158418]
[1764713601420,5.56158418,139.77,139.71,7.15720369]
[1764713601622,5.56158418,139.77,139.69,24.228864]
[1764713601623,0.7,139.76,139.7,7.15816044]
[1764713601920,5.56158418,139.76,139.71,4.86158418]
[1764713602330,0.7,139.75,139.72,7.15717148]
[1764713602640,0.7,139.75,139.71,7.157484]
[1764713602821,4.86158418,139.73,139.69,7.15841597]
[1764713603022,4.86158418,139.74,139.69,7.15841597]
[1764713603215,4.86158418,139.73,139.69,7.15841597]
[1764713603415,0.7,139.72,139.7,4.86158418]
[1764713604035,0.7,139.72,139.69,7.15841597]
[1764713604333,0.7,139.72,139.69,12.02000015]
[1764713604534,0.7,139.74,139.71,4.86158418]
[1764713604725,0.7,139.74,139.72,4.86158418]
[1764713604922,0.7,139.74,139.71,4.86158418]
[1764713605837,0.7,139.74,139.7,4.86158418]
[1764713606018,0.7,139.74,139.69,25.05518739]
[1764713606220,0.7,139.74,139.71,4.86158418]
[1764713606431,0.7,139.74,139.72,7.15717148]
[1764713607718,4.86158418,139.73,139.68,4.86158418]
[1764713607921,5.56158418,139.74,139.68,4.86158418]
[1764713608120,5.56158418,139.74,139.68,22.75891611]
[1764713608121,0.7,139.73,139.68,22.75891611]
[1764713608329,0.7,139.73,139.69,4.86158418]
[1764713608726,0.7,139.73,139.68,29.91813718]
[1764713608936,4.86158418,139.72,139.68,7.15922107]
[1764713609237,4.86158418,139.71,139.65,29.92424082]
[1764713609446,5.56158418,139.7,139.65,29.92424082]
[1764713610048,0.7,139.69,139.65,7.16075904]
[1764713610231,5.56158418,139.69,139.65,7.16075904]
[1764713610550,0.7,139.69,139.64,37.4467416]
[1764713610730,0.7,139.68,139.64,37.4467416]
[1764713612251,0.7,139.68,139.64,25.06445144]
[1764713612548,13.08229016,139.68,139.64,25.06445144]
[1764713613054,0.7,139.67,139.64,25.06445144]
[1764713613251,12.38229016,139.66,139.63,7.16158627]
[1764713613548,0.7,139.67,139.61,7.16249359]
[1764713613733,12.38229016,139.64,139.61,7.16249359]
[1764713613925,12.38229016,139.64,139.6,7.16332378]
[1764713614128,0.7,139.63,139.6,19.54561394]
[1764713614456,0.7,139.63,139.6,37.45392339]
[1764713615451,0.7,139.63,139.6,25.07163323]
[1764713615641,0.7,139.63,139.6,37.45392339]
[1764713615952,0.7,139.63,139.58,0.67]
[1764713615953,0.7,139.63,139.59,19.54595709]
[1764713616355,0.7,139.63,139.59,37.45554946]
[1764713616556,13.08229016,139.63,139.59,7.16366693]
[1764713617049,13.08229016,139.63,139.6,12.38229016]
[1764713617050,0.66,139.63,139.6,12.38229016]
[1764713617254,0.66,139.63,139.59,25.7432593]
[1764713617454,0.66,139.63,139.6,12.38229016]
[1764713617952,0.66,139.63,139.61,7.16281068]
[1764713618333,12.38229016,139.62,139.57,17.91163105]
[1764713618541,0.66,139.63,139.6,12.38229016]
[1764713619657,0.66,139.63,139.59,12.38229016]
[1764713619858,12.38229016,139.62,139.57,25.07649455]
[1764713620358,12.38229016,139.62,139.57,7.1648635]
[1764713620359,12.38229016,139.6,139.57,7.1648635]
[1764713620731,13.04229016,139.59,139.56,7.16516447]
[1764713621152,0.66,139.58,139.53,17.91670837]
[1764713621362,0.66,139.58,139.54,12.38229016]
[1764713621655,12.38229016,139.57,139.54,7.16640389]
[1764713621857,0.67,139.58,139.56,7.16537689]
[1764713622268,0.67,139.57,139.56,7.16537689]
[1764713623252,7.92,139.61,139.56,19.54766705]
[1764713623455,8.59,139.61,139.58,12.38229016]
[1764713624157,28.69115416,139.64,139.59,12.38229016]
[1764713624158,0.67,139.63,139.59,12.38229016]
[1764713625172,0.67,139.63,139.6,7.16332378]
[1764713625565,0.67,139.63,139.61,12.38229016]
[1764713627399,0.67,139.63,139.62,7.16229766]
[1764713627907,0.67,139.66,139.62,38.12033198]
[1764713628070,0.67,139.66,139.63,12.38229016]
[1764713628388,0.67,139.66,139.63,7.27465023]
[1764713628591,0.67,139.68,139.65,7.27465023]
[1764713628796,0.67,139.67,139.65,7.27465023]
[1764713628966,0.67,139.68,139.65,7.27465023]
[1764713629167,0.67,139.68,139.66,7.27465023]
[1764713629395,0.67,139.68,139.64,18.5721721]
[1764713629573,0.67,139.68,139.65,7.27465023]
[1764713629967,0.67,139.68,139.64,18.5721721]
[1764713629968,0.67,139.68,139.64,25.84682233]
[1764713630780,0.67,139.68,139.65,14.43520569]
[1764713632002,0.67,139.68,139.65,7.16055546]
[1764713634091,7.92,139.69,139.66,7.94465023]
[1764713634295,0.67,139.73,139.68,7.27465023]
[1764713634497,0.67,139.73,139.69,3.10106554]
[1764713635513,0.67,139.73,139.66,7.16024631]
[1764713635514,10.92789165,139.73,139.66,7.16024631]
[1764713635693,3.10106554,139.69,139.65,7.16064677]
[1764713636091,0.67,139.68,139.65,7.16064677]
[1764713640193,7.94365081,139.68,139.62,32.34110195]
[1764713640390,7.27365081,139.67,139.62,14.43594847]
[1764713640595,7.92,139.66,139.62,7.16229766]
[1764713640803,8.59,139.66,139.62,7.16229766]
[1764713641010,0.67,139.65,139.62,7.16229766]
[1764713641314,0.3,139.64,139.61,7.16258486]
[1764713641517,0.3,139.64,139.61,14.43623567]
[1764713641721,0.97,139.64,139.61,14.43623567]
[1764713641894,0.97,139.64,139.61,7.16258486]
[1764713643213,0.3,139.64,139.6,7.83332146]
[1764713643407,0.97,139.64,139.6,15.10697227]
[1764713643805,0.67,139.63,139.6,7.16332146]
[1764713645426,0.67,139.63,139.58,7.94365081]
[1764713645630,0.67,139.63,139.57,7.92]
[1764713645631,0.67,139.63,139.59,7.27365081]
[1764713645801,0.67,139.63,139.59,7.94365081]
[1764713646001,0.67,139.63,139.58,7.27365081]
[1764713646320,0.67,139.63,139.59,7.16383695]
[1764713646522,0.67,139.63,139.59,14.43748776]
[1764713648337,7.83178961,139.63,139.59,14.43748776]
[1764713648706,0.67,139.63,139.59,14.43748776]
[1764713649028,0.67,139.62,139.59,7.16383695]
[1764713649734,15.86365081,139.62,139.58,7.16411415]
[1764713650234,7.94365081,139.61,139.55,25.85835231]
[1764713650527,7.94365081,139.61,139.56,7.16513882]
[1764713650528,7.27365081,139.6,139.56,7.16513882]
[1764713650704,7.94365081,139.6,139.56,7.16513882]
[1764713650901,0.67,139.59,139.55,14.43934309]
[1764713651109,15.19365081,139.58,139.53,25.19051804]
[1764713651323,7.92,139.58,139.54,7.83621468]
[1764713651508,0.67,139.57,139.54,7.83621468]
[1764713651720,0.67,139.57,139.54,7.16621468]
[1764713652114,15.10874889,139.57,139.5,18.83042041]
[1764713652314,7.27365081,139.56,139.51,14.44159576]
[1764713652510,7.27365081,139.54,139.5,0.2]
[1764713652715,7.27365081,139.53,139.5,0.2]
[1764713652912,7.27365081,139.52,139.5,0.2]
[1764713653232,0.7,139.51,139.5,0.2]
[1764713653937,7.97365081,139.51,139.5,0.2]
[1764713654418,7.92,139.54,139.5,7.36843375]
[1764713654613,7.92,139.54,139.52,7.27365081]
[1764713654614,0.7,139.54,139.52,7.27365081]
[1764713654813,7.94,139.56,139.52,7.27365081]
[1764713655024,0.7,139.55,139.51,7.98365081]
[1764713655215,0.7,139.55,139.5,7.36843375]
[1764713655431,0.7,139.55,139.52,7.27365081]
[1764713655643,0.7,139.55,139.53,7.27365081]
[1764713655815,0.7,139.55,139.52,7.27365081]
[1764713656237,0.7,139.55,139.51,0.71]
[1764713656423,0.7,139.55,139.52,14.44060031]
[1764713656626,7.94,139.56,139.54,7.27365081]
[1764713656832,7.94,139.56,139.53,0.71]
[1764713657735,7.94,139.56,139.54,7.27365081]
[1764713658446,7.94,139.56,139.54,14.4400547]
[1764713659031,8.64,139.56,139.54,7.27365081]
[1764713659533,0.3,139.55,139.54,7.27365081]
[1764713660650,0.3,139.55,139.54,14.4400547]
[1764713660842,0.3,139.55,139.54,7.16640389]
[1764713661346,0.3,139.58,139.54,33.06606444]
[1764713661562,0.3,139.57,139.54,33.06606444]
[1764713661931,0.3,139.57,139.55,7.27365081]
[1764713662248,0.3,139.57,139.54,25.79241363]
[1764713662249,0.7,139.57,139.54,7.98365081]
[1764713662845,0.7,139.57,139.55,7.16589036]
[1764713664140,9.64,139.58,139.55,7.16589036]
[1764713665337,8.94,139.58,139.54,7.8762186]
[1764713665656,0.7,139.57,139.54,15.14986941]
[1764713666556,0.7,139.57,139.53,10.98473509]
[1764713666851,0.7,139.57,139.54,3.81800794]
[1764713667147,8.94,139.58,139.56,3.10800794]
[1764713667354,1.0,139.58,139.56,3.10800794]
[1764713667537,1.0,139.58,139.57,3.81800794]
[1764713668437,1.0,139.58,139.57,7.98814235]
[1764713669049,1.0,139.58,139.57,15.15300585]
[1764713669244,1.0,139.58,139.57,7.8748635]
[1764713669428,1.0,139.58,139.57,15.15300585]
[1764713669628,1.0,139.58,139.57,23.07300585]
[1764713671653,0.3,139.62,139.57,85.61942708]
[1764713671829,0.3,139.65,139.58,0.71]
[1764713672036,0.7,139.62,139.57,25.07702227]
[1764713672235,0.3,139.61,139.57,32.35516462]
[1764713672436,1.0,139.61,139.58,7.27814235]
[1764713672837,1.0,139.61,139.57,15.15300585]
[1764713673475,0.7,139.6,139.57,7.8748635]
[1764713673865,0.3,139.62,139.58,0.71]
[1764713674165,0.3,139.62,139.59,7.27814235]
[1764713674537,0.3,139.62,139.61,7.27814235]
[1764713675151,0.3,139.62,139.6,7.27814235]
[1764713675641,0.3,139.62,139.61,7.16281068]
[1764713675947,0.3,139.62,139.6,7.16320313]
[1764713676263,0.3,139.62,139.6,15.09134548]
[1764713678661,0.3,139.62,139.6,14.44134548]
[1764713679050,0.66,139.61,139.57,25.72702227]
[1764713679251,0.66,139.61,139.58,7.27814235]
[1764713679657,0.66,139.61,139.58,14.4420581]
[1764713679855,0.66,139.61,139.57,0.65]
[1764713680153,0.66,139.61,139.57,7.27814235]
[1764713680339,7.82296441,139.61,139.56,7.81537689]
[1764713680542,7.82296441,139.61,139.57,7.27814235]
[1764713680741,0.66,139.6,139.57,7.27814235]
[1764713681370,0.66,139.6,139.56,7.81537689]
[1764713681547,0.66,139.6,139.56,14.44351924]
[1764713682846,7.93814235,139.6,139.56,7.16537689]
[1764713683047,7.93814235,139.6,139.55,7.81555497]
[1764713683264,0.68,139.59,139.55,15.09369732]
[1764713683769,0.3,139.58,139.55,15.09369732]
[1764713683973,0.3,139.58,139.55,33.00842322]
[1764713685073,0.68,139.59,139.55,33.00842322]
[1764713685272,0.68,139.59,139.55,25.73028087]
[1764713688182,0.68,139.59,139.55,25.08028087]
[1764713688375,0.68,139.59,139.56,0.65]
[1764713689276,0.68,139.59,139.54,7.92]
[1764713689277,5.53503053,139.59,139.54,7.16635484]
[1764713689485,4.85503053,139.58,139.54,7.81635484]
[1764713689677,5.53503053,139.58,139.54,7.81635484]
[1764713689858,5.53503053,139.58,139.54,25.08236458]
[1764713690053,5.53503053,139.58,139.55,0.65]
[1764713690666,8.16354886,139.6,139.54,25.08236458]
[1764713690867,5.53503053,139.57,139.54,25.08236458]
[1764713691078,5.53503053,139.57,139.54,7.16635484]
[1764713691972,0.68,139.56,139.54,7.16635484]
[1764713692184,5.53503053,139.56,139.54,7.16635484]
[1764713692985,5.53503053,139.55,139.53,7.1666744]
[1764713693377,5.53503053,139.55,139.52,7.16719279]
[1764713693568,5.53503053,139.55,139.51,25.73726395]
[1764713694059,5.53503053,139.55,139.52,0.65]
[1764713695165,4.85503053,139.55,139.52,0.65]
[1764713695364,5.53503053,139.55,139.52,0.65]
[1764713695975,5.53503053,139.55,139.53,7.1669175]
[1764713696169,4.85503053,139.55,139.52,7.81728797]
[1764713696559,5.53503053,139.55,139.52,7.81728797]
[1764713697167,42.1389753,139.59,139.51,17.919319]
[1764713697168,5.53503053,139.54,139.51,7.16750394]
[1764713697884,5.53503053,139.54,139.51,7.81750394]
[1764713698086,5.53503053,139.55,139.51,7.16750394]
[1764713698264,0.68,139.54,139.51,7.81750394]
[1764713698463,0.68,139.54,139.51,7.16750394]
[1764713698687,5.53503053,139.54,139.51,7.16750394]
[1764713698984,5.53503053,139.54,139.5,8.01825665]
[1764713699164,0.3,139.53,139.5,8.01825665]
[1764713700092,0.98,139.53,139.5,8.01825665]
[1764713700276,5.83503053,139.53,139.5,8.01825665]
[1764713700592,5.53503053,139.52,139.5,0.2]
[1764713700900,13.66497545,139.51,139.5,0.2]
[1764713701107,14.34497545,139.51,139.5,0.2]
[1764713701466,22.26497545,139.51,139.5,0.2]
[1764713701913,29.4329204,139.51,139.5,0.2]
[1764713703105,0.68,139.53,139.5,0.2]
[1764713703321,4.85503053,139.52,139.5,0.2]
[1764713703713,5.53503053,139.52,139.5,0.2]
[1764713705034,5.53503053,139.52,139.5,7.36833866]
[1764713705230,5.53503053,139.52,139.5,0.2]
[1764713705626,7.92,139.53,139.51,0.65]
[1764713705828,0.68,139.55,139.51,0.65]
[1764713706217,5.53503053,139.55,139.52,7.16743119]
[1764713706416,0.68,139.55,139.52,7.16743119]
[1764713706754,5.53503053,139.55,139.52,7.16743119]
[1764713707221,0.68,139.55,139.52,7.16743119]
[1764713707640,5.53503053,139.55,139.52,7.16743119]
[1764713707854,5.53503053,139.55,139.52,7.81743119]
[1764713708155,7.92,139.56,139.52,7.81743119]
[1764713708315,4.85503053,139.55,139.52,7.81743119]
[1764713708721,13.45503053,139.56,139.52,7.81743119]
[1764713709247,0.68,139.55,139.52,7.16743119]
[1764713709543,0.68,139.55,139.52,7.81743119]
[1764713710414,0.3,139.55,139.53,0.65]
[1764713711437,0.3,139.55,139.52,25.08600917]
[1764713711645,0.3,139.55,139.53,0.65]
[1764713712646,0.3,139.55,139.53,7.81669527]
[1764713713236,0.3,139.55,139.53,0.65]
[1764713713440,0.3,139.55,139.52,7.16722485]
[1764713713644,1.0,139.55,139.52,7.86722485]
[1764713714637,0.7,139.54,139.51,7.16780666]
[1764713714846,5.55503053,139.54,139.51,7.16780666]
[1764713715044,0.7,139.53,139.51,7.16780666]
[1764713715551,4.85503053,139.54,139.51,7.86780666]
[1764713715726,5.55503053,139.54,139.51,7.86780666]
[1764713716349,12.72147686,139.54,139.51,0.7]
[1764713716856,0.7,139.54,139.51,7.86790669]
[1764713720374,5.55503053,139.54,139.51,7.16790669]
[1764713720832,0.7,139.53,139.51,7.16790669]
[1764713721267,1.0,139.55,139.51,7.86790669]
[1764713721466,0.7,139.54,139.51,7.86790669]
[1764713725356,0.3,139.53,139.51,7.86790669]
[1764713730067,0.7,139.52,139.51,7.16790669]
[1764713730267,4.85503053,139.53,139.51,7.16790669]
[1764713730457,5.55503053,139.53,139.51,7.16790669]
[1764713731667,5.55503053,139.53,139.5,8.06832065]
[1764713731971,0.7,139.53,139.5,8.06832065]
[1764713732171,5.55503053,139.52,139.5,0.2]
[1764713732569,0.7,139.51,139.5,0.2]
[1764713733073,0.7,139.51,139.5,7.36845878]
[1764713733660,0.7,139.52,139.5,7.36845878]
[1764713733862,5.55503053,139.52,139.5,7.36845878]
[1764713734057,0.7,139.52,139.5,7.36845878]
[1764713735266,5.55503053,139.52,139.5,0.2]
[1764713735775,5.55503053,139.52,139.5,7.36835275]
[1764713736075,0.68,139.51,139.5,0.2]
[1764713738486,0.3,139.52,139.5,17.70736775]
[1764713738658,0.3,139.52,139.51,4.7726637]
[1764713738851,0.3,139.52,139.51,5.4826637]
[1764713739452,0.3,139.52,139.51,12.65060865]
[1764713740283,5.53503053,139.54,139.51,7.16794495]
[1764713740473,0.68,139.53,139.51,7.16794495]
[1764713740790,5.15503053,139.52,139.5,0.2]
[1764713741083,13.66497545,139.51,139.5,0.2]
[1764713741256,14.34497545,139.51,139.5,0.2]
[1764713741455,21.5129204,139.51,139.5,0.2]
[1764713741861,21.5129204,139.51,139.47,0.2]
[1764713741862,39.43278277,139.51,139.47,0.2]
[1764713742070,13.66497545,139.48,139.47,0.2]
[1764713742557,14.37497545,139.48,139.47,0.2]
[1764713743569,21.54446211,139.48,139.47,0.2]
[1764713744789,14.37497545,139.48,139.47,0.2]
[1764713744964,21.54446211,139.48,139.47,0.2]
[1764713746629,14.37497545,139.48,139.47,0.2]
[1764713747469,21.54446211,139.48,139.47,0.2]
[1764713748795,14.37497545,139.48,139.47,0.2]
[1764713749594,21.54446211,139.48,139.47,0.2]
[1764713749777,17.018864,139.49,139.47,0.2]
[1764713749980,0.71,139.49,139.47,0.2]
[1764713750594,3.82209372,139.49,139.47,0.2]
[1764713753390,0.71,139.49,139.47,0.2]
[1764713753770,3.11209372,139.5,139.47,7.36989305]
[1764713754001,4.12209372,139.52,139.48,0.72]
[1764713754200,3.82209372,139.51,139.48,0.72]
[1764713754497,3.82209372,139.51,139.47,8.08989305]
[1764713755079,0.71,139.5,139.47,8.08989305]
[1764713756308,3.11209372,139.51,139.47,7.36989305]
[1764713756614,1.01,139.52,139.47,7.36989305]
[1764713756615,0.3,139.52,139.48,0.72]
[1764713756896,3.82209372,139.55,139.49,11.03209372]
[1764713757081,3.82209372,139.55,139.5,7.16845878]
[1764713757274,3.82209372,139.55,139.49,7.92]
[1764713757275,3.11209372,139.53,139.49,7.92]
[1764713757500,3.11209372,139.53,139.5,0.72]
[1764713757881,3.82209372,139.52,139.49,7.16890914]
[1764713758483,3.82209372,139.52,139.49,7.88890914]
[1764713758684,3.82209372,139.51,139.48,7.16934047]
[1764713759011,3.11209372,139.51,139.48,7.88934047]
[1764713760218,0.71,139.55,139.49,3.83209372]
[1764713760508,18.19730253,139.57,139.51,3.11209372]
[1764713760812,7.92,139.57,139.52,3.11209372]
[1764713760987,7.92,139.57,139.53,7.8869175]
[1764713760988,8.63,139.57,139.53,7.8869175]
[1764713761188,3.11209372,139.59,139.54,0.72]
[1764713761398,2.01,139.6,139.54,0.72]
[1764713761399,9.93,139.6,139.54,3.83209372]
[1764713761600,1.0,139.6,139.56,19.42095772]
[1764713761813,1.0,139.6,139.56,7.92]
[1764713761989,1.0,139.6,139.57,0.72]
[1764713762392,1.0,139.6,139.57,3.83209372]
[1764713762606,1.0,139.6,139.57,0.72]
[1764713762909,3.82209372,139.59,139.55,0.72]
[1764713763088,3.82209372,139.59,139.55,7.88589036]
[1764713763290,10.98599869,139.59,139.55,7.88589036]
[1764713763608,3.11209372,139.58,139.55,0.72]
[1764713763799,3.82209372,139.58,139.54,7.16620238]
[1764713764106,0.71,139.58,139.54,7.88620238]
[1764713764405,0.71,139.57,139.53,7.16677975]
[1764713764608,0.71,139.57,139.54,0.72]
[1764713764993,7.8751434,139.57,139.53,7.16677975]
[1764713765196,10.98723712,139.57,139.54,0.72]
[1764713765411,0.71,139.57,139.54,0.72]
[1764713767423,10.57675445,139.58,139.54,0.72]
[1764713767719,0.3,139.59,139.57,3.11209372]
[1764713767918,1.0,139.6,139.57,0.72]
[1764713768096,1.0,139.6,139.58,0.72]
[1764713768833,1.0,139.6,139.56,0.72]
[1764713769011,1.71,139.6,139.56,3.83209372]
[1764713769408,1.71,139.6,139.57,7.1648635]
[1764713769709,1.71,139.6,139.57,7.8848635]
[1764713769915,1.71,139.6,139.57,0.72]
[1764713770111,1.0,139.6,139.59,3.11209372]
[1764713770501,1.0,139.6,139.59,3.83209372]
[1764713771513,1.0,139.6,139.59,27.30479467]
[1764713772220,1.0,139.6,139.59,32.11270095]
[1764713772520,1.0,139.6,139.59,35.22479467]
[1764713773106,3.78209372,139.7,139.62,16.308864]
[1764713773308,3.11209372,139.69,139.63,11.03209372]
[1764713773529,3.11209372,139.68,139.64,7.16127184]
[1764713773734,3.11209372,139.68,139.64,7.86127184]
[1764713774035,3.78209372,139.68,139.64,7.86127184]
[1764713774722,3.78209372,139.67,139.63,7.16160872]
[1764713775218,3.78209372,139.67,139.63,7.86160872]
[1764713775428,10.94203399,139.67,139.63,0.7]
[1764713775636,0.67,139.66,139.62,7.16211106]
[1764713775800,0.67,139.66,139.62,7.86211106]
[1764713777101,7.83024818,139.66,139.62,7.86211106]
[1764713777301,3.11209372,139.65,139.61,7.16261823]
[1764713777519,0.67,139.65,139.61,7.86261823]